[Event "Susha Chess Blitz Women 2022"]
[Site "Shusha"]
[Date "2022.09.24"]
[Round "12"]
[White "Dzagnidze, Nana"]
[Black "Efroimski, Marsel"]
[Result "1/2-1/2"]
[ECO "A10"]
[WhiteElo "2526"]
[BlackElo "2462"]
[Annotator "TA"]
[PlyCount "88"]
[EventDate "2022.09.24"]
[EventType "tourn"]
[EventCountry "AZE"]
[SourceTitle "playchess.com"]
[Source "ChessBase"]
[SourceQuality "1"]
[TimeControl "180+2"]

{[%evp 11,88,44,45,0,0,-55,-48,-47,11,-59,53,19,33,19,19,25,86,92,115,114,106,100,210,195,208,128,137,120,130,88,137,72,75,78,120,31,31,31,34,27,27,27,27,20,42,29,50,29,49,0,49,34,50,49,49,49,68,29,47,0,50,50,50,50,50,50,50,50,50,0,0,0,0,0,0,0,0,0,0]} 1. c4 {[%emt 0:00:03]} b6 2. Nc3 {[%emt 0:00:04]} Bb7 {[%emt 0:00:02]} 3. d4 {[%emt 0:00:11]} e6 {[%emt 0:00:00]} 4. e4 {[%emt 0:00:06][%cal Be2e4,Be4f5][%mdl 32]} Bb4 {[%emt 0:00:01]} 5. f3 {[%emt 0:00:13]} f5 {[%emt 0:00:01]} 6. exf5 {[%emt 0:00:05]} Nh6 {[%emt 0:00:01]} 7. Bxh6 {[%emt 0:00:20] A40: Unusual replies to 1 d4.} Qh4+ {[%emt 0:00:01] [#]} 8. Kd2 $146 {[%emt 0:00:39]} (8. g3 $11 Qxh6 9. Qd3) ({Predecessor:} 8. g3 Qxh6 9. Qd2 Qxd2+ 10. Kxd2 Nc6 11. fxe6 dxe6 12. Nge2 O-O-O 13. Ke3 Nxd4 14. Nxd4 Bc5 {0-1 (37) Voit,D (2390)-Paehtz,E (2464) Riadh 2017}) 8... Qxh6+ $15 {[%emt 0:00:03]} ({Much worse is} 8... gxh6 9. Kc2 $11) 9. Kc2 {[%emt 0:00:00] Black is slightly better.} Bxc3 {[%emt 0:00:06]} (9... Nc6 $1 $15) 10. Kxc3 {[%emt 0:00:21]} (10. bxc3 $11 c5 11. Qd2) 10... exf5 {[%emt 0:00:03]} (10... Nc6 $15) 11. Qd2 {[%emt 0:00:07] Qxh6 is the strong threat.} Qf6 {[%emt 0:00:16]} 12. Re1+ {[%emt 0:00:02]} Kf7 {[%emt 0:00:09]} 13. Nh3 {[%emt 0:00:02]} Rf8 {[%emt 0:00:24]} (13... c5 $11) 14. Qg5 $1 $16 {[%emt 0:00:13]} c5 {[%emt 0:00:46]} 15. Qxf6+ {[%emt 0:00:04]} Kxf6 {[%emt 0:00:02] [#]} 16. d5 {[%emt 0:00:09]} Bc8 {[%emt 0:00:27]} (16... Na6 $16) 17. g4 {[%emt 0:00:08][%cal Bg2g4,Bg4g5][%mdl 32]} d6 {[%emt 0:00:06]} 18. g5+ {[%emt 0:00:02]} Kf7 {[%emt 0:00:03]} 19. Nf4 {[%emt 0:00:02]} Na6 {[%emt 0:00:07]} 20. h4 {[%emt 0:00:08] And now h5 would win. White has more active pieces. The black rooks are badly placed.} Nc7 {[%emt 0:00:01]} ({Better is} 20... Bd7) 21. Rh2 {[%emt 0:00:08]} (21. h5 $142) 21... Bd7 {[%emt 0:00:02]} 22. Bd3 {[%emt 0:00:17][%cal Og5g6]} Rfe8 {[%emt 0:00:03] [#]} 23. Rhe2 {[%emt 0:00:01]} ({White should play} 23. g6+ $1 $16 hxg6 24. Rg1) 23... Rxe2 $14 {[%emt 0:00:02]} 24. Rxe2 {[%emt 0:00:01]} Re8 {[%emt 0:00:02]} 25. a3 {[%emt 0:00:08]} Rxe2 {[%emt 0:00:05]} 26. Bxe2 $11 {[%emt 0:00:04][%mdl 4096] Endgame KBN-KBN} a5 {[%emt 0:00:01]} 27. Bd3 {[%emt 0:00:04]} g6 {[%emt 0:00:07]} 28. b3 {[%emt 0:00:02]} Na6 {[%emt 0:00:03]} 29. Bc2 {[%emt 0:00:03]} Bc8 {[%emt 0:00:04]} 30. Bd3 {[%emt 0:00:01]} Bd7 $1 {[%emt 0:00:01]} 31. Ng2 {[%emt 0:00:01]} Bc8 {[%emt 0:00:05]} 32. Ne3 {[%emt 0:00:06]} Bd7 {[%emt 0:00:02]} 33. f4 {[%emt 0:00:02]} Bc8 {[%emt 0:00:01]} 34. Nc2 {[%emt 0:00:02]} Bd7 {[%emt 0:00:02]} 35. b4 {[%emt 0:00:01]} (35. h5 $14 {is more appropriate.}) 35... axb4+ {[%emt 0:00:01]} (35... cxb4+ $11 36. axb4 Ba4) 36. axb4 $14 {[%emt 0:00:01]} cxb4+ {[%emt 0:00:19]} 37. Nxb4 {[%emt 0:00:01]} Nxb4 {[%emt 0:00:01]} 38. Kxb4 $11 {[%emt 0:00:01] KB-KB} Ke7 {[%emt 0:00:00]} 39. Bc2 {[%emt 0:00:04]} Kd8 {[%emt 0:00:03]} 40. Ba4 {[%emt 0:00:01]} ({White should try} 40. Bd1 $14) 40... Bxa4 {[%emt 0:00:02] The position is equal.} 41. Kxa4 {[%emt 0:00:01]} Kc7 {[%emt 0:00:01]} 42. Kb5 {[%emt 0:00:04]} Kb7 {[%emt 0:00:00]} 43. Kb4 {[%emt 0:00:03] White threatens Kb5 and mate.} Kb8 {[%emt 0:00:01]} 44. Ka4 {[%emt 0:00:01]} Ka7 {[%emt 0:00:01] Black escapes into a draw.  Weighted Error Value: White=0.24 (precise) /Black=0.19 (very precise)} 1/2-1/2

[Event "Susha Chess Blitz Women 2022"]
[Site "Shusha"]
[Date "2022.09.24"]
[Round "12"]
[White "Mammadzada, Gunay"]
[Black "Beydullayeva, Govhar"]
[Result "0-1"]
[ECO "B90"]
[WhiteElo "2473"]
[BlackElo "2346"]
[Annotator "TA"]
[PlyCount "70"]
[EventDate "2022.09.24"]
[EventType "tourn"]
[EventCountry "AZE"]
[SourceTitle "playchess.com"]
[Source "ChessBase"]
[SourceQuality "1"]
[TimeControl "180+2"]

{[%evp 14,70,39,26,41,-6,-5,-13,-6,-14,-10,-9,0,0,-8,-14,-10,-14,-15,-14,0,0,0,0,0,0,0,-120,-116,-141,-130,-141,-123,-133,-118,-98,-96,-210,-128,-183,-116,-152,0,-176,-150,-159,-124,-126,-128,-169,-120,-222,-210,-212,-235,-218,-209,-743,-742]} 1. e4 {[%emt 0:00:01]} c5 {[%emt 0:00:00]} 2. Nf3 d6 3. d4 {[%emt 0:00:02]} cxd4 {[%emt 0:00:01]} 4. Nxd4 {[%emt 0:00:01]} Nf6 {[%emt 0:00:01]} 5. Nc3 a6 6. Bd3 {[%emt 0:00:02]} Nc6 {[%emt 0:00:04]} 7. Nxc6 {[%emt 0:00:07]} bxc6 {[%emt 0:00:00]} 8. O-O {[%emt 0:00:34] 8.0-0 has become a bit dusty these days.} g6 {[%emt 0:00:10] B90: Sicilian Najdorf: Unusual White 6th moves, 6 Be3 Ng4 and 6 Be3 e5.} 9. a4 {[%emt 0:00:03]} (9. b3 $14) 9... a5 $11 {[%emt 0:00:04]} 10. Qe2 {[%emt 0:00:08]} Bg7 {[%emt 0:00:01] The position is equal.} 11. e5 {[%emt 0:00:04]} dxe5 {[%emt 0:00:06]} 12. Qxe5 {[%emt 0:00:02]} O-O {[%emt 0:00:02]} 13. Qc5 {[%emt 0:00:29]} Qd6 {[%emt 0:00:23]} 14. Qxd6 {[%emt 0:00:29]} exd6 {[%emt 0:00:01]} 15. Bf4 {[%emt 0:00:02]} Rd8 {[%emt 0:00:07]} 16. Rab1 {[%emt 0:00:13] [#]} Rb8 $146 {[%emt 0:00:04]} ({Predecessor:} 16... Be6 17. Bg3 Rab8 18. Ne4 Nxe4 19. Bxe4 Rb4 20. Bxc6 Rc8 21. c3 Bxc3 22. bxc3 Rxb1 23. Rxb1 Rxc6 24. h3 {½-½ (24) Oehne,T (2140)-Raum,S (2124) Germany 2017}) 17. b3 {[%emt 0:00:07]} Ng4 {[%emt 0:00:25]} 18. Ne4 {[%emt 0:00:06]} Be5 {[%emt 0:00:03]} 19. Bg5 {[%emt 0:00:07]} f6 $1 {[%emt 0:00:06]} 20. Bh4 {[%emt 0:00:28] [#]} (20. Bd2 $11 {remains equal.}) 20... d5 $1 $17 {[%emt 0:00:27]} ({Don't play} 20... Bxh2+ $6 21. Kh1 Be5 22. f3 $11) 21. Nd2 {[%emt 0:00:21]} Bxh2+ {[%emt 0:00:03]} 22. Kh1 {[%emt 0:00:00]} Be5 {[%emt 0:00:12]} 23. Nf3 {[%emt 0:00:09]} Bd6 {[%emt 0:00:07]} 24. Nd4 {[%emt 0:00:02]} Bd7 {[%emt 0:00:04]} 25. Rfe1 {[%emt 0:00:11]} (25. f3 $17 Ne5 26. Bxf6) 25... Re8 {[%emt 0:00:02]} 26. Kg1 {[%emt 0:00:01]} (26. Rxe8+ $17 {was called for.} Rxe8 27. f3) 26... Bc5 {[%emt 0:00:11]} (26... Rxe1+ $19 27. Rxe1 Kf7) 27. Nf3 {[%emt 0:00:03]} Bd6 {[%emt 0:00:22] Black is more active.} 28. Nd4 $1 {[%emt 0:00:02]} Kg7 {[%emt 0:00:07]} 29. f3 {[%emt 0:00:03] Threatens to win with Rxe8.} Bc5 {[%emt 0:00:08]} 30. c3 {[%emt 0:00:00]} Ne5 $36 {[%mdl 2048] Black has strong initiative.} 31. Bf1 Bf5 {[%emt 0:00:18]} (31... g5 $19 32. Bf2 h5) 32. Rbd1 {[%emt 0:00:05]} (32. Ra1 $17) 32... Bc2 $1 $19 {[%emt 0:00:02]} 33. Rd2 {[%emt 0:00:02]} Bxb3 {[%emt 0:00:01]} 34. Bf2 {[%emt 0:00:01]} Bxd4 {[%emt 0:00:11]} ({Not} 34... Bxa4 35. Ra2 Bb3 36. Rxa5) 35. Bxd4 {[%emt 0:00:03] [#]} (35. cxd4 Nc4 36. Rde2 Rxe2 37. Bxe2) 35... Nxf3+ $1 {[%emt 0:00:01][%mdl 512] Weighted Error Value: White=0.47/Black=0.21 (precise)} 0-1

[Event "Susha Chess Blitz Women 2022"]
[Site "Shusha"]
[Date "2022.09.24"]
[Round "12"]
[White "Arabidze, Meri"]
[Black "Fataliyeva, Ulviyya"]
[Result "1-0"]
[ECO "A06"]
[WhiteElo "2422"]
[BlackElo "2408"]
[Annotator "TA"]
[PlyCount "121"]
[EventDate "2022.09.24"]
[EventType "tourn"]
[EventCountry "AZE"]
[SourceTitle "playchess.com"]
[Source "ChessBase"]
[SourceQuality "1"]
[TimeControl "180+2"]

{[%evp 9,121,4,14,8,6,-8,17,9,18,19,13,-6,0,0,10,-10,16,14,44,6,53,41,56,54,44,54,54,33,28,19,18,22,61,34,32,24,74,0,0,0,-4,0,-11,-49,-56,-59,6,6,23,0,0,-26,0,-26,-26,-61,0,0,0,0,0,0,0,-2,0,0,0,0,0,0,75,0,0,-127,-127,-127,-127,-131,-45,-90,-25,-31,-17,-15,0,0,0,0,-7,-20,0,0,12,8,8,8,34,0,0,0,8,7,100,88,426,99,96,31,29979,29980,29997,29998,29998,29999]} 1. Nf3 {[%emt 0:00:01]} d5 {[%emt 0:00:02]} 2. g3 {[%emt 0:00:01]} Bg4 {[%emt 0:00:04]} 3. Bg2 Nd7 4. h3 {[%emt 0:00:08]} Bxf3 {[%emt 0:00:08]} 5. Bxf3 {[%emt 0:00:01]} c6 {[%emt 0:00:02]} 6. Bg2 {[%emt 0:00:02] A07: Réti Opening: New York and Capablanca Systems.} Ngf6 {[%emt 0:00:05]} 7. d4 {[%emt 0:00:06]} e6 {[%emt 0:00:01]} 8. O-O {[%emt 0:00:02] [#] The position is equal.} Be7 $146 ({Predecessor:} 8... Qb6 9. c3 Bd6 10. Qb3 O-O 11. Nd2 e5 12. dxe5 Nxe5 13. e4 dxe4 14. Nxe4 Nxe4 15. Bxe4 Qxb3 16. axb3 {½-½ (30) Steczek,M (2370)-Rudolf,M (2339) Jastrzebia Gora 2016}) 9. c4 {[%emt 0:00:06]} O-O {[%emt 0:00:04]} 10. Qc2 {[%emt 0:00:02]} Rc8 {[%emt 0:00:03]} 11. Rd1 {[%emt 0:00:10]} Re8 {[%emt 0:00:02]} 12. b3 {[%emt 0:00:04]} Bf8 {[%emt 0:00:12]} 13. Bb2 {[%emt 0:00:03]} g6 {[%emt 0:00:01]} (13... c5 {seems wilder.} 14. dxc5 Bxc5 15. Nc3 dxc4 16. bxc4 Qc7) 14. Nc3 {[%emt 0:00:07]} Bg7 {[%emt 0:00:01]} (14... b5 $11) 15. e3 {[%emt 0:00:07]} Qc7 {[%emt 0:00:30][%cal Ob7b5]} 16. Rac1 {[%emt 0:00:02]} Qb8 {[%emt 0:00:01]} 17. Qe2 {[%emt 0:00:06]} a6 {[%emt 0:00:22]} 18. Rc2 {[%emt 0:00:16]} b5 {[%emt 0:00:03]} 19. Rdc1 {[%emt 0:00:10]} dxc4 {[%emt 0:00:31]} 20. bxc4 b4 21. Nb1 {[%emt 0:00:50][%cal Bc3b1,Bb1d2,Bd2b3][%mdl 32]} c5 {[%emt 0:00:02]} 22. Nd2 {[%emt 0:00:02]} e5 {[%emt 0:00:10]} (22... a5 $11 {keeps the balance.}) 23. dxc5 {[%emt 0:00:12]} ({White should try} 23. dxe5 $16 Nxe5 24. f4) 23... Nxc5 $11 {[%emt 0:00:02]} 24. Nb3 {[%emt 0:00:03]} Nfd7 {[%emt 0:00:07]} 25. Bd5 {[%emt 0:00:05]} e4 {[%emt 0:00:08]} 26. Bxg7 {[%emt 0:00:03]} Kxg7 {[%emt 0:00:01]} 27. Rd1 {[%emt 0:00:12]} Nxb3 {[%emt 0:00:07]} (27... Qc7 $15) 28. axb3 {[%emt 0:00:01][%cal Od5f7] Black must now prevent Bxf7!} Nc5 {[%emt 0:00:01]} 29. Rb2 {[%emt 0:00:24]} Qe5 {[%emt 0:00:07]} 30. Rd4 {[%emt 0:00:01]} Rb8 {[%emt 0:00:28]} 31. Rb1 {[%emt 0:00:06]} Rb6 {[%emt 0:00:01]} 32. Qb2 {[%emt 0:00:12]} Nd3 {[%emt 0:00:24]} (32... a5 $15) 33. Qd2 {[%emt 0:00:09]} f5 {[%emt 0:00:01]} 34. Rxd3 {[%emt 0:00:05]} exd3 {[%emt 0:00:02]} 35. Qxd3 {[%emt 0:00:01]} Rd6 {[%emt 0:00:05]} 36. Qd2 {[%emt 0:00:04]} a5 {[%emt 0:00:01]} 37. Qa2 {[%emt 0:00:01]} Ra6 {[%emt 0:00:09]} 38. Qa4 {[%emt 0:00:04]} Re7 {[%emt 0:00:03]} 39. Qb5 {[%emt 0:00:01]} Qf6 {[%emt 0:00:02]} (39... Rea7 $11) 40. Rd1 {[%emt 0:00:03]} (40. Qb8 Rd7 $11) (40. c5 $1 $16) 40... Qb6 {[%emt 0:00:03] aiming for ...Qxb5.} 41. Qxb6 {[%emt 0:00:04]} (41. Qa4 $11) 41... Rxb6 {[%emt 0:00:01][%mdl 4096] Endgame KRR-KRB} 42. Ra1 {[%emt 0:00:04]} Ra7 {[%emt 0:00:05][%cal Oa5a4]} 43. Ra4 {[%emt 0:00:01]} Rd6 {[%emt 0:00:01]} (43... Kf8 $17) 44. Kf1 {[%emt 0:00:01] [#]} Kf6 {[%emt 0:00:01]} (44... g5 $1 $17) 45. Ke2 {[%emt 0:00:00]} Ke5 {[%emt 0:00:00]} 46. Kd3 {[%emt 0:00:02]} Rda6 {[%emt 0:00:04]} 47. f4+ {[%emt 0:00:01]} Kd6 48. Kd4 Re7 {[%emt 0:00:03]} 49. Ra1 {[%emt 0:00:07]} h6 {[%emt 0:00:01]} 50. g4 {[%emt 0:00:03]} Rea7 {[%emt 0:00:04]} 51. gxf5 gxf5 52. Rg1 {[%emt 0:00:02][%cal Od5b7] And now Bb7! would win.} Ke7 {[%emt 0:00:02]} 53. c5 {[%emt 0:00:03] Bc4 is the strong threat.} a4 {[%emt 0:00:01]} 54. bxa4 {[%emt 0:00:03]} Rxa4 {[%emt 0:00:01]} 55. Ke5 {[%emt 0:00:01]} R4a6 {[%emt 0:00:05]} (55... R4a5 $11 {remains equal.}) 56. Rg7+ $16 {[%emt 0:00:01][%mdl 1024] White has strong compensation.} (56. Kxf5 Rc7 $14) 56... Kf8 $2 {[%emt 0:00:02][%mdl 8192] [#]} (56... Kd8 $16 {is a better chance.} 57. Bb7 b3 58. Rg8+ Kc7 59. Bxa6 Rxa6) 57. Rg8+ $2 {[%emt 0:00:01]} (57. Rxa7 $1 $18 Rxa7 58. Kd6 (58. Kxf5 $2 Ra5 $19)) 57... Ke7 {[%emt 0:00:01]} 58. c6 {[%emt 0:00:02] White has more active pieces.} (58. Kxf5 $16 {Hoping for e4.} Rc7 59. e4 (59. Rg7+ Kd8 $11)) 58... Ra8 $2 {[%emt 0:00:02][%mdl 8192]} (58... Ra5 $14) 59. Rg7+ {White mates.} Kd8 60. Kd6 {[%emt 0:00:03][%cal Rg7g8]} Rxc6+ {[%emt 0:00:02]} 61. Bxc6 {[%emt 0:00:01] Weighted Error Value: White=0.24 (precise) /Black=0.38} 1-0

[Event "Susha Chess Blitz Women 2022"]
[Site "Shusha"]
[Date "2022.09.24"]
[Round "12"]
[White "Mammadova, Gulnar"]
[Black "Balajayeva, Khanim"]
[Result "1/2-1/2"]
[ECO "A38"]
[WhiteElo "2382"]
[BlackElo "2379"]
[Annotator "TA"]
[PlyCount "47"]
[EventDate "2022.09.24"]
[EventType "tourn"]
[EventCountry "AZE"]
[SourceTitle "playchess.com"]
[Source "ChessBase"]
[SourceQuality "1"]
[TimeControl "180+2"]

{[%evp 21,24,0,0,0,20]} 1. c4 {[%emt 0:00:02]} c5 {[%emt 0:00:02]} 2. Nc3 {[%emt 0:00:02]} Nf6 {[%emt 0:00:04]} 3. Nf3 {[%emt 0:00:03]} Nc6 {[%emt 0:00:01]} 4. g3 {[%emt 0:00:03]} g6 {[%emt 0:00:08]} 5. Bg2 {[%emt 0:00:02]} Bg7 {[%emt 0:00:01]} 6. O-O {[%emt 0:00:10]} O-O {[%emt 0:00:02]} 7. e4 {[%emt 0:00:02]} e5 {[%emt 0:00:12]} 8. d3 {[%emt 0:00:02]} d6 {[%emt 0:00:00]} 9. Nd5 {[%emt 0:00:26]} Nxd5 {[%emt 0:00:04]} 10. cxd5 {[%emt 0:00:02]} Nd4 {[%emt 0:00:01]} 11. Nxd4 {[%emt 0:00:05]} cxd4 {[%emt 0:00:06]} 12. Bd2 {[%emt 0:00:21] A36: Symmetrical English vs ...g6: 4 Bg2 Bg7.} Bd7 {[%emt 0:00:09] [#] An uneventful encounter.} {Predecessor:} 13. Rc1 $146 Rc8 14. Rxc8 Qxc8 15. Qc1 Qxc1 16. Rxc1 Rc8 17. Rxc8+ Bxc8 18. b4 b5 19. h4 h5 20. Kh2 Kh7 21. Bh3 Bxh3 22. Kxh3 Bh6 23. Bxh6 Kxh6 24. Kg2 {½-½ (24) Cotic,B (2043)-Simunic,K (2058) Hvar 2019} 1/2-1/2

[Event "Susha Chess Blitz Women 2022"]
[Site "Shusha"]
[Date "2022.09.24"]
[Round "12"]
[White "Ozturk Orenli, Kubra"]
[Black "Zawadzka, Jolanta"]
[Result "1-0"]
[ECO "D02"]
[WhiteElo "2319"]
[BlackElo "2401"]
[Annotator "TA"]
[PlyCount "85"]
[EventDate "2022.09.24"]
[EventType "tourn"]
[EventCountry "AZE"]
[SourceTitle "playchess.com"]
[Source "ChessBase"]
[SourceQuality "1"]
[TimeControl "180+2"]

{[%evp 9,85,0,0,0,0,2,25,22,90,39,54,46,45,41,37,43,62,40,52,43,91,92,122,129,187,195,191,189,179,153,159,25,111,93,104,94,271,95,110,86,145,59,90,101,91,77,116,107,666,742,645,675,648,352,898,593,556,534,29978,750,6279,1107,1063,931,2039,1196,2579,593,564,570,604,609,618,614,949,923,1415,1415]} 1. d4 {[%emt 0:00:00]} d5 {[%emt 0:00:01]} 2. Nf3 {[%emt 0:00:02]} Nf6 {[%emt 0:00:01]} 3. Bf4 {[%emt 0:00:10]} c5 {[%emt 0:00:01]} 4. e3 {[%emt 0:00:01]} Nc6 {[%emt 0:00:02]} 5. Be2 {[%emt 0:00:07]} Nh5 {[%emt 0:00:26]} 6. Be5 {[%emt 0:00:37] D02: 1 d4 d5 2 Nf3 sidelines, including 2...Nf6 3 g3 and 2...Nf6 3 Bf4.} f6 {[%emt 0:00:25]} 7. Bg3 {[%emt 0:00:21]} g6 {[%emt 0:00:16]} 8. O-O {[%emt 0:00:05] [#] White has an edge.} Bg7 $146 {[%emt 0:00:19]} (8... Nxg3 $11 9. hxg3 cxd4) ({Predecessor:} 8... Nxg3 9. hxg3 cxd4 10. exd4 Bg7 11. c4 e6 12. Nc3 O-O 13. Re1 Kh8 14. Rc1 Ne7 {0-1 (47) Caruana,F (2792)-Vokhidov,S (2536) Chess.com INT 2022}) 9. c4 {[%emt 0:00:07]} (9. dxc5 $16 Nxg3 10. hxg3) 9... Nxg3 {[%emt 0:00:12]} 10. hxg3 {[%emt 0:00:01]} cxd4 {[%emt 0:00:02]} 11. cxd5 {[%emt 0:00:18]} Qxd5 {[%emt 0:00:11]} 12. Nc3 {[%emt 0:00:02]} Qa5 {[%emt 0:00:12]} 13. exd4 {[%emt 0:00:05] Hoping for d5.} (13. Nxd4 $5 {[%cal Re2b5]} O-O 14. Qb3+ Kh8 15. Rad1 $14) 13... O-O {[%emt 0:00:11]} 14. d5 {[%emt 0:00:09]} Nb8 {[%emt 0:00:09]} (14... Ne5 $14 {might be stronger.}) 15. Re1 {[%emt 0:00:12]} Kh8 {[%emt 0:00:19]} 16. Bd3 {[%emt 0:00:14]} Qb4 {[%emt 0:00:08]} (16... Qd8 $16) 17. a3 $18 {[%emt 0:00:16]} Qd6 {[%emt 0:00:19]} 18. Qe2 {[%emt 0:00:18]} Re8 {[%emt 0:00:11]} 19. Rac1 {[%emt 0:00:06] Black must now prevent Nb5.} a6 {[%emt 0:00:04] Prevents Nb5.} 20. Nd4 {[%emt 0:00:05]} (20. Ne4 $16 Qb6 21. Nc5) 20... Bd7 {[%emt 0:00:03]} (20... e5 $11 {keeps the balance.}) 21. Qf3 {[%emt 0:00:08] White is more active.} e5 {[%emt 0:00:04]} 22. dxe6 $1 {[%emt 0:00:04]} ({Of course not} 22. Ne6 $6 Bxe6 23. dxe6 Nc6 $11) 22... Bc6 {[%emt 0:00:03] [#]} (22... Qxd4 $16 {was necessary.} 23. exd7 Nxd7) 23. Nxc6 $2 {[%emt 0:00:04]} (23. Nf5 $1 $18 {[%cal Rf5d6][%mdl 512] is the precise move to win.} Qd8 24. Qe2 gxf5 25. e7) 23... Nxc6 $16 {[%emt 0:00:01]} 24. Bc4 {[%emt 0:00:07]} Ne5 {[%emt 0:00:01]} (24... f5 $142) 25. Qd5 {[%emt 0:00:01]} (25. Qe2 $16) 25... Qe7 {[%emt 0:00:03]} 26. Ba2 {[%emt 0:00:03]} Rad8 {[%emt 0:00:01]} 27. Qe4 {[%emt 0:00:06]} Nd3 {[%emt 0:00:01] aiming for ...f5.} 28. Nd5 $36 {[%emt 0:00:01][%cal Bc3d5,Bd5f4,Bf4e6][%mdl 2080] Keeping Black busy.} Qd6 {[%emt 0:00:03][%mdl 8192]} (28... Rxd5 $16 29. Bxd5 Nxe1) 29. Qxd3 $18 {[%emt 0:00:02]} Rxe6 {[%emt 0:00:02]} 30. Rxe6 {[%emt 0:00:00]} Qxe6 {[%emt 0:00:01]} 31. Qe3 {[%emt 0:00:02]} Qd7 {[%emt 0:00:02]} (31... Qxe3 32. Nxe3 f5) 32. Re1 {[%emt 0:00:03]} f5 {[%emt 0:00:02]} 33. Nf4 {[%emt 0:00:02]} Qb5 {[%emt 0:00:03] [#]} 34. b4 {[%emt 0:00:02]} (34. Nxg6+ $142 $1 hxg6 35. Qg5 Qd7 36. Qh4+ Bh6 37. Qxh6+ Qh7 38. Qg5 Rd7 39. Qf6+ Qg7 40. Re8+ Kh7 41. Qh4+ Qh6 {[#]} 42. Rh8+ $3 {[%mdl 512]} Kg7 43. Rxh6) 34... Rf8 {[%emt 0:00:02] White is clearly winning.} 35. Ne6 {[%emt 0:00:02]} Re8 {[%emt 0:00:01]} 36. Qd2 {[%emt 0:00:02]} Bf6 {[%emt 0:00:04]} 37. Rd1 {[%emt 0:00:03] Qh6 would kill now.} Qa4 {[%emt 0:00:02]} 38. Qd7 {[%emt 0:00:03]} Qxd7 {[%emt 0:00:03]} 39. Rxd7 {[%emt 0:00:00]} b5 {[%emt 0:00:01]} 40. Kf1 {[%emt 0:00:03]} Rc8 {[%emt 0:00:01]} 41. Bd5 {[%emt 0:00:02]} h5 {[%emt 0:00:03]} 42. Nf4 {[%emt 0:00:01][%cal Rf4g6]} Rc1+ {[%emt 0:00:04]} 43. Ke2 {[%emt 0:00:01] Weighted Error Value: White=0.50/Black=0.78} 1-0

[Event "Susha Chess Blitz Women 2022"]
[Site "Shusha"]
[Date "2022.09.24"]
[Round "13"]
[White "Dzagnidze, Nana"]
[Black "Fataliyeva, Ulviyya"]
[Result "0-1"]
[ECO "D31"]
[WhiteElo "2526"]
[BlackElo "2408"]
[Annotator "TA"]
[PlyCount "52"]
[EventDate "2022.09.24"]
[EventType "tourn"]
[EventCountry "AZE"]
[SourceTitle "playchess.com"]
[Source "ChessBase"]
[SourceQuality "1"]
[TimeControl "180+2"]

{[%evp 9,52,30,27,31,33,17,26,17,11,16,21,16,20,16,31,14,22,0,26,-9,30,20,16,0,18,1,14,4,9,0,0,0,13,0,28,-38,-51,-34,-43,-30,-27,-33,0,-211,-199]} 1. d4 {[%emt 0:00:02]} d5 {[%emt 0:00:03]} 2. c4 {[%emt 0:00:01]} e6 {[%emt 0:00:01]} 3. Nc3 {[%emt 0:00:02]} a6 {[%emt 0:00:01]} 4. cxd5 {[%emt 0:00:09]} exd5 {[%emt 0:00:00]} 5. Nf3 {[%emt 0:00:02]} h6 {[%emt 0:00:01]} 6. Bf4 {[%emt 0:00:03] D31: Queen's Gambit Declined: Semi-Slav without ...Nf6 (+ Marshall Gambit and Noteboom) and Exchange Variation lines without ...Nf6.} Nf6 {[%emt 0:00:02]} 7. e3 {[%emt 0:00:05]} Bd6 {[%emt 0:00:03]} 8. Be5 {[%emt 0:00:06] White has an edge.} c6 {[%emt 0:00:03][%cal Bc7c6,Bc6c5][%mdl 32]} 9. Bd3 {[%emt 0:00:07]} O-O {[%emt 0:00:04]} 10. h3 {[%emt 0:00:09]} Re8 {[%emt 0:00:01]} 11. O-O {[%emt 0:00:05]} Bxe5 {[%emt 0:00:13]} 12. Nxe5 {[%emt 0:00:05]} c5 {[%emt 0:00:00] [#]} 13. b3 $146 {[%emt 0:00:22]} ({Predecessor:} 13. a4 cxd4 14. exd4 Nc6 15. Nxc6 bxc6 16. a5 Rb8 17. Qd2 Qd6 18. Na4 Ne4 19. Bxe4 dxe4 {½-½ (45) Predke,A (2580)-Grandelius,N (2651) Riga 2021}) 13... Qd6 {[%emt 0:00:23]} 14. Rc1 {[%emt 0:00:05]} b6 {[%emt 0:00:09]} 15. Bb1 {[%emt 0:00:29]} Nbd7 {[%emt 0:00:42]} 16. Nd3 {[%emt 0:00:32]} cxd4 {[%emt 0:00:57]} 17. exd4 {[%emt 0:00:02]} Ne4 {[%emt 0:00:01]} 18. Re1 {[%emt 0:00:04][%cal Od3b4]} Bb7 {[%emt 0:00:06]} 19. Na4 {[%emt 0:00:11]} Bc6 {[%emt 0:00:20]} 20. Qc2 {[%emt 0:00:23]} Rec8 {[%emt 0:00:09]} 21. Ne5 {[%emt 0:00:07]} Bb7 {[%emt 0:00:10]} 22. Qd3 {[%emt 0:00:05]} ({White should try} 22. Qe2 $11 Rxc1 23. Rxc1 Nxe5 24. dxe5 Qxe5 25. Bxe4 dxe4 26. Nxb6) 22... Rxc1 $15 {[%emt 0:00:02]} 23. Rxc1 {[%emt 0:00:01]} Nxe5 {[%emt 0:00:02]} 24. dxe5 {[%emt 0:00:02]} Qxe5 {[%emt 0:00:01][%cal Oe4f2] ...Nxf2! is the strong threat.} 25. Nxb6 {[%emt 0:00:14]} Rd8 {[%emt 0:00:07] aiming for ...Qf6.} (25... Re8 $5 {[%cal Re5f6]} 26. Qe2 d4 $11) 26. Re1 $2 {[%emt 0:00:09] [#]} (26. Qe2 $11 {and White is okay.}) 26... Qf6 $1 {[%emt 0:00:02][%csl LRb6,LRf2] Weighted Error Value: White=0.29 (precise) /Black=0.09 (flawless)} 0-1